Cogmind - Beta 13 @@@ ROGUE MODE // 2024.05.29 @ 18:38:04 Player: arkn Result: Destroyed by H-61 Shepherd with Heavy Assault Cannon Performance ------------- Evolutions (2) 1000 Regions Visited (4) 800 Robots Destroyed (56) 280 Value Destroyed (1740) 1740 Prototype IDs (0) 0 Alien Tech Used (0) 0 Bonus (83) 83 TOTAL SCORE: 3903 Bonus ------- Follower Combat Kills 83 Cogmind --------- Core Integrity 0/550 Matter 286/300 Energy 100/100 System Corruption 8% Temperature Cool (0) Movement Walking (265) Ox2 Location -8/Materials Parts ------- > --- POWER (1) -------- (None) > --- PROPULSION (4) --- Aluminum Leg VSS Leg > --- UTILITY (4) ------ High-capacity Storage Unit Target Analyzer Improved Light Armor Plating > --- WEAPON (2) ------- Assault Rifle Great Maul > --- INVENTORY (20) --- Wheel Wheel High-capacity Matter Pod (200) Structural Scanner Improved Sensor Array Improved Signal Interpreter Seismic Detector ECM Suite Reaction Control System Power Shielding Improved Light Armor Plating Improved Light Armor Plating Grenade Launcher Makeshift Axe Peak State ------------ > --- POWER ------------ Light Nuclear Core > --- PROPULSION ------- Aluminum Leg Aluminum Leg VSS Leg VSS Leg > --- UTILITY ---------- Improved Heat Sink High-capacity Storage Unit Target Analyzer Hardened Medium Armor Plating > --- WEAPON ----------- Heavy Ion Cannon High-powered Shotgun > --- INVENTORY -------- Improved Ion Engine VSS Leg High-capacity Matter Pod Structural Scanner Improved Sensor Array Improved Signal Interpreter Seismic Detector ECM Suite Reaction Control System Power Shielding Improved Weapon Shielding Improved Light Armor Plating Insulated Plating Assault Rifle Grenade Launcher Heavy Flail Great Maul Makeshift Axe [Rating: 32] Favorites ----------- Power Ion Engine Engine Ion Engine Power Core Light Nuclear Core Propulsion Compact Wheel Leg Aluminum Leg Wheel Compact Wheel Utility High-capacity Storage Unit Device Seismic Detector Storage High-capacity Storage Unit Processor Target Analyzer Protection Reflective Plating Weapon EM Pulse Gun Energy Gun EM Pulse Gun Energy Cannon Heavy Ion Cannon Ballistic Gun Subdweller Machine Gun Ballistic Cannon Light Cannon Launcher Grenade Launcher Special Weapon Mining Laser Impact Weapon Great Maul Slashing Weapon Makeshift Axe Build | -11 -10 -10 -10 -8 ------- Run | Yrd Mat Min Sub Mat Slots Evolved 4 | . . . . 4 Power . | . . . . . Propulsion 2 | . . . . 2 Utility 2 | . . . . 2 Weapon . | . . . . . Parts Attached 78 | 1 9 3 19 46 Power 8 | . 1 . 2 5 Engine 5 | . 1 . 2 2 Core 3 | . . . . 3 Reactor . | . . . . . Propulsion 23 | . 4 . 7 12 Treads . | . . . . . Leg 5 | . . . . 5 Wheel 18 | . 4 . 7 7 Hover . | . . . . . Flight . | . . . . . Utility 24 | 1 2 2 4 15 Device 8 | 1 . 1 1 5 Storage 2 | . 2 . . . Processor 1 | . . . . 1 Hackware . | . . . . . Protection 13 | . . 1 3 9 Artifact . | . . . . . Weapon 23 | . 2 1 6 14 Energy Gun 1 | . . 1 . . Energy Cannon 4 | . . . . 4 Ballistic Gun 6 | . . . 3 3 Ballistic Cannon 5 | . 1 . 2 2 Launcher 1 | . . . . 1 Special Weapon 2 | . 1 . 1 . Impact Weapon 3 | . . . . 3 Slashing Weapon 1 | . . . . 1 Piercing Weapon . | . . . . . Special Melee Weapon . | . . . . . Unidentified Prototypes . | . . . . . Corrupted Parts 1 | . . . . 1 System Corruption 8 | . . . . 8 Parts Lost 37 | . . . 10 27 Power 3 | . . . 1 2 Propulsion 14 | . . . 4 10 Utility 11 | . . . 1 10 Weapon 9 | . . . 4 5 Highest Loss Streak 9 | . . . 4 9 To Critical Strikes . | . . . . . Average Slot Usage (%) 97 | . 100 100 99 90 Engine 10 | . 14 14 13 2 Core 1 | . . . . 6 Leg 4 | . 8 . . 7 Wheel 23 | . 19 28 27 21 Device 10 | . 14 11 4 13 Storage 12 | . 14 14 14 9 Protection 5 | . . 2 9 9 Energy Gun 8 | . 18 14 4 . Energy Cannon 1 | . . . . 4 Ballistic Gun 4 | . . . 14 3 Ballistic Cannon 8 | . 7 14 8 7 Naked Turns . | . . . . . Heaviest Build 73 | 13 51 54 60 73 Greatest Support 68 | 20 32 32 40 68 Greatest Overweight (x) 18 | . 1 1 3 18 Average Overweight (x) . | . . 1 1 . Largest Inventory Capacity 20 | 8 20 20 20 20 Average Capacity 17 | 8 12 20 20 20 Most Carried 20 | 8 17 20 20 20 Average Carried 16 | 6 11 19 19 17 Final Capacity 20 | 8 20 20 20 20 Final Carried 20 | 8 16 20 16 14 Class Distribution -------------------- 78% | Mutant 21% | Scavenger-Mutant Dominant Class ---------------- Mutant | -10/Materials Mutant | -10/Mines Mutant | -10/Subcaves Scavenger-Mutant | -8/Materials Resources | -11 -10 -10 -10 -8 ----------- Run | Yrd Mat Min Sub Mat Matter Collected 1807 | 210 326 186 352 733 Remotely 409 | . . . . 409 Salvage Created 1901 | 109 266 52 297 1177 Parts 113 | 7 20 4 16 66 Haulers Intercepted 1 | . 1 . . . Recyclers Shooed 2 | . . . . 2 Parts Field Recycled . | . . . . . Retrieved Matter . | . . . . . Parts Self-Destructed 5 | . . . 5 . Prevented . | . . . . . Kills | -11 -10 -10 -10 -8 ------- Run | Yrd Mat Min Sub Mat Combat Hostiles Destroyed 43 | . 5 3 9 26 Melee 1 | . . . . 1 Guns 13 | . 3 2 7 1 Cannons 21 | . 2 1 2 16 AOE 4 | . . . . 4 Classes Destroyed 13 | 2 4 . 1 6 Builder 5 | . . . . 5 Tunneler 2 | 1 . . . 1 Hauler 1 | . 1 . . . Recycler 3 | 1 1 . . 1 Watcher 2 | . 2 . . . Swarmer 10 | . 3 3 . 4 Grunt 10 | . 2 . . 8 Brawler 1 | . . . . 1 Duelist 1 | . . . . 1 Sentry 5 | . . . . 5 Specialist 6 | . . . . 6 Hunter 1 | . . . . 1 Subdweller 9 | . . . 9 . Best Kill Streak 8 | 2 3 2 2 8 Combat Bots Only 7 | . 3 2 2 7 Max Kills in Single Turn 3 | 1 2 1 1 3 Gunslinging . | . . . . . Exploded 2 | . . . . 2 Melee 1 | . . . . 1 Uniques/NPCs Destroyed . | . . . . . Combat | -11 -10 -10 -10 -8 -------- Run | Yrd Mat Min Sub Mat Hostile Shots Fired 407 | . 20 20 49 318 Missed 104 | . 4 4 6 90 Damage Taken 4711 | . 190 126 886 3509 Core 773 | . 54 48 119 552 Absorbed by Shields . | . . . . . Redirected to Shielding 110 | . . . . 110 Ignored by Resistances 29 | . . . 5 24 Core Remaining (%) 55 | 100 . . 11 . Volleys Fired 162 | 2 30 9 36 85 Largest 2 | 2 2 2 2 2 Hottest 130 | 80 100 75 100 130 Shots Fired 314 | 4 57 18 70 165 Gun 134 | 4 40 9 51 30 Cannon 174 | . 14 9 18 133 Launcher 2 | . . . . 2 Special 4 | . 3 . 1 . Kinetic 175 | . 14 9 68 84 Thermal 83 | . 3 . 1 79 Explosive 2 | . . . . 2 Electromagnetic 54 | 4 40 9 1 . Robot Hit Streak 27 | 1 5 1 27 17 Robot Miss Streak 9 | 1 9 5 1 3 Penetration Max . | . . . . . Secondary Targets 2 | . . . 2 . Max Gunslinging Chain 1 | . . . 1 . Shots Hit Robots 213 | 2 20 4 57 130 Core Hits 78 | 2 10 3 18 45 Critical Kills 1 | . . . . 1 Critical Parts Destroyed 8 | . . . . 8 Critical Strikes 14 | . 1 1 2 10 Meltdown 1 | . . . . 1 Destroy 6 | . . . 2 4 Blast 1 | . . . . 1 Corrupt 2 | . 1 1 . . Smash 4 | . . . . 4 Melee Attacks 19 | . . . . 19 Impact 17 | . . . . 17 Slashing 2 | . . . . 2 Piercing . | . . . . . Sneak Attacks 2 | . . . . 2 Combat Hostiles . | . . . . . Follow-up Attacks 1 | . . . . 1 Damage Inflicted 5316 | 27 468 58 1070 3693 Guns 1518 | 27 201 23 847 420 Cannons 2676 | . 159 35 223 2259 Explosions 377 | . 108 . . 269 Melee 745 | . . . . 745 Ramming . | . . . . . Kinetic 2326 | . 159 35 1070 1062 Thermal 1725 | . 108 . . 1617 Explosive 269 | . . . . 269 Electromagnetic 251 | 27 201 23 . . Impact 600 | . . . . 600 Slashing 145 | . . . . 145 Piercing . | . . . . . Highest Corruption 8 | . . . . 8 Average Corruption 8 | . . . . 8 Corruption Purged . | . . . . . Corruption Blocked . | . . . . . Effects 9 | . . . . 9 Message Errors 2 | . . . . 2 Matter Fused 4 | . . . . 4 Energy Discharges 1 | . . . . 1 Parts Rejected 1 | . . . . 1 Data Loss (minor) 1 | . . . . 1 Overload Shots . | . . . . . Overflow Damage 444 | . . . . 444 Projectiles 81 | . . . . 81 Explosions 13 | . . . . 13 Melee 350 | . . . . 350 Knockbacks 21 | . 2 1 1 17 Impact 2 | . . . . 2 Kinetic 16 | . 2 1 1 12 Secondary 3 | . . . . 3 Self-Inflicted Damage 46 | . 22 . . 24 Shots 2 | . 1 . . 1 Rammed 1 | . 1 . . . Targets Rammed 1 | . 1 . . . Kicked . | . . . . . Crushed . | . . . . . Highest Temperature 381 | 18 204 120 2 381 Average Temperature 87 | 12 55 55 2 108 Received Heat Transfer 1164 | . 54 6 258 846 Effects 2 | . . . . 2 Interference 2 | . . . . 2 Siege Activations . | . . . . . Robots Corrupted . | . . . . . Combat Hostiles . | . . . . . Parts Fried 2 | . . . . 2 Impact Corruptions 6 | . . . . 6 Robots Melted 1 | . . . . 1 Combat Hostiles 1 | . . . . 1 Parts Melted 1 | . . . . 1 Heat Transferred 2370 | . 150 . . 2220 Parts Sabotaged . | . . . . . Parts Stolen . | . . . . . Parts Stripped . | . . . . . Power Chain Reactions 3 | . 3 . . . Alert | -11 -10 -10 -10 -8 ------- Run | Yrd Mat Min Sub Mat Peak Influence 372 | 10 146 121 . 372 Initial 6 | . 6 6 . . Average 93 | 8 54 16 . 189 Maximum Alert Level 1 | . . . . 1 Low Security (%) 78 | 100 100 100 . 41 Level 1 21 | . . . . 58 Level 2 . | . . . . . Level 3 . | . . . . . Level 4 . | . . . . . Level 5 . | . . . . . High Security . | . . . . . Max Security . | . . . . . Squads Dispatched 14 | . 2 1 . 11 Investigation 2 | . 1 1 . . Extermination . | . . . . . Reinforcement 9 | . 1 . . 8 Assault . | . . . . . Garrison 3 | . . . . 3 Intercept . | . . . . . Searches Triggered . | . . . . . Construction Impeded 1 | . . . . 1 Haulers Reinforced . | . . . . . Active Scanning Responses . | . . . . . Cargo Convoy Interrupts . | . . . . . Stealth | -11 -10 -10 -10 -8 --------- Run | Yrd Mat Min Sub Mat Distress Signals 9 | . 2 . . 7 Communications Jammed . | . . . . . Distress Signals . | . . . . . Times Spotted 72 | . 13 5 10 44 Peak Tracking Total 12 | . 4 3 2 12 Tactical Retreats 5 | . . 1 . 4 Traps | -11 -10 -10 -10 -8 ------- Run | Yrd Mat Min Sub Mat Traps Triggered 1 | . 1 . . . Indirectly . | . . . . . Trap Hack Attempts . | . . . . . Triggered . | . . . . . Disarmed . | . . . . . Reprogrammed . | . . . . . Reused . | . . . . . Traps Extracted . | . . . . . Installed . | . . . . . Triggered . | . . . . . Machines | -11 -10 -10 -10 -8 ---------- Run | Yrd Mat Min Sub Mat Machines Disabled 4 | . 2 1 . 1 Max in Single Turn 1 | . 1 1 . 1 Machines Repaired . | . . . . . Machines Dismantled . | . . . . . Machines Sabotaged . | . . . . . Overloaded Fab Kills . | . . . . . Hacking | -11 -10 -10 -10 -8 --------- Run | Yrd Mat Min Sub Mat Machines Accessed 5 | . 3 1 . 1 Terminals 4 | . 3 . . 1 Fabricators . | . . . . . Repair Stations . | . . . . . Recycling Units . | . . . . . Scanalyzers . | . . . . . Garrison Access . | . . . . . Total Hacks 20 | . 17 1 . 2 Successful 12 | . 9 1 . 2 Failed 8 | . 8 . . . Catastrophic . | . . . . . Database Lockouts . | . . . . . Manual 17 | . 15 . . 2 Terminals 19 | . 17 . . 2 Fabricators . | . . . . . Repair Stations . | . . . . . Recycling Units . | . . . . . Scanalyzers . | . . . . . Garrison Access . | . . . . . Terminal Hacks 3 | . 2 1 . . Record 1 | . 1 . . . Open Door 1 | . . 1 . . Terminal Index 1 | . 1 . . . Fabricator Hacks . | . . . . . Repair Station Hacks . | . . . . . Recycling Unit Hacks . | . . . . . Scanalyzer . | . . . . . Garrison Access Hacks . | . . . . . Unauthorized Hacks 9 | . 7 . . 2 Terminals 9 | . 7 . . 2 Track 4 | . 3 . . 1 Botnet 4 | . 3 . . 1 Operators 1 | . 1 . . . Fabricators . | . . . . . Repair Stations . | . . . . . Recycling Units . | . . . . . Scanalyzers . | . . . . . Garrison Access . | . . . . . Data Cores Recovered . | . . . . . Used . | . . . . . Hacking Detections 4 | . 3 . . 1 Full Trace Events 1 | . 1 . . . Feedback Events . | . . . . . Feedback Blocked . | . . . . . Robot Schematics Acquired . | . . . . . Robots Built . | . . . . . Authchips . | . . . . . Time . | . . . . . Total Robot Build Rating . | . . . . . Part Schematics Acquired . | . . . . . Parts Built . | . . . . . Authchips . | . . . . . Time . | . . . . . Total Part Build Rating . | . . . . . Parts Repaired . | . . . . . Time . | . . . . . Parts Recycled . | . . . . . Recycled Matter . | . . . . . Retrieved Matter . | . . . . . Retrieved Components . | . . . . . Parts Scanalyzed . | . . . . . Part Schematics Acquired . | . . . . . Parts Damaged . | . . . . . Bothacking | -11 -10 -10 -10 -8 ------------ Run | Yrd Mat Min Sub Mat Used RIF Installer . | . . . . . Robots Hacked . | . . . . . Non-combat . | . . . . . Combat . | . . . . . Robot Hacks Applied . | . . . . . Relay Couplers Released . | . . . . . Fabnet Peak Effective % . | . . . . . Robots Rewired . | . . . . . Allies Hacked . | . . . . . Hacks Repelled . | . . . . . Allies | -11 -10 -10 -10 -8 -------- Run | Yrd Mat Min Sub Mat Total Allies 3 | . . 3 . . Largest Group 3 | . . 3 2 . Highest-Rated Group 40 | . . 40 32 . Highest-Rated Ally 16 | . . 16 16 . Total Orders . | . . . . . Ally Attacks 13 | . . 10 3 . Total Damage 104 | . . 56 48 . Kills 3 | . . 2 1 . Allies Corrupted . | . . . . . Allies Melted . | . . . . . Intel | -11 -10 -10 -10 -8 ------- Run | Yrd Mat Min Sub Mat Robot Analysis Total . | . . . . . Derelict Logs Recovered 3 | . . 1 2 . Drone Launches . | . . . . . Drone Recoveries . | . . . . . Exploration | -11 -10 -10 -10 -8 ------------- Run | Yrd Mat Min Sub Mat Turns Passed 3450 | 57 924 670 824 975 Spaces Moved 2175 | 32 660 516 559 408 Core 1 | . . . . 1 Treads . | . . . . . Legs 291 | 32 189 . . 70 Wheels 1883 | . 471 516 559 337 Hover . | . . . . . Flight . | . . . . . Fastest Speed 90 | 120 90 115 115 97 Average Speed 113 | 120 105 115 116 121 Slowest Speed 950 | 120 120 115 145 950 Overloaded Moves . | . . . . . Propulsion Burnouts . | . . . . . Robots Hopped . | . . . . . Cave-ins Triggered . | . . . . . Exploration Rate (%) 49 | 3 80 87 46 31 Regions Visited 4 Branch Regions 2 Pre-discovered Areas 1 | . . . 1 . Known Exits Taken . | . . . . . Unknown Exits Taken 4 | 1 1 1 1 . Scrap Searched 3 | . . 1 2 . Spaces Dug 4 | . 2 . . 2 Terrain Destroyed 36 | . 5 . . 31 Melee 1 | . . . . 1 Projectile 22 | . 2 . . 20 AOE 13 | . 3 . . 10 Terrain Rammed . | . . . . . Walls Destroyed . | . . . . . Machines Disabled . | . . . . . Actions | -11 -10 -10 -10 -8 --------- Run | Yrd Mat Min Sub Mat Total 2792 | 47 825 574 661 685 Wait 281 | 7 104 39 39 92 Move 2171 | 31 659 515 558 408 Hop . | . . . . . Pick Up 53 | 4 12 6 5 26 Fast Attach 14 | 1 2 . 2 9 Attach 31 | . 1 . 8 22 Detach . | . . . . . Swap 33 | . 6 3 9 15 Drop 29 | 2 10 2 4 11 Fire 162 | 2 30 9 36 85 Melee 17 | . . . . 17 Ram 1 | . 1 . . . Kick . | . . . . . Crush . | . . . . . Escape Stasis . | . . . . . Rewire . | . . . . . Trap . | . . . . . Miscellaneous . | . . . . . Route ------- -11/Scrapyard -10/Materials (discovered 4 exits: [*Mat x2] / *Min x2) -10/Mines (discovered 3 exits: [*Mat x2] / [*Sub]) -10/Subcaves -8/Materials (discovered 2 exits: Fac / [*Sto]) History --------- Turn | Location | Event 5 | -11/Scrapyard | Discovered new exit (range 3) 58 | -11/Scrapyard | Entered Materials 211 | -10/Materials | Discovered new exit (range 9) 256 | -10/Materials | Discovered new exit (range 5) 308 | -10/Materials | Build established: Mutant 571 | -10/Materials | Discovered new exit (range 16) 764 | -10/Materials | Discovered new exit (range 5) 982 | -10/Materials | Entered Mines 996 | -10/Mines | Met a Derelict bent on vengeance 1035 | -10/Mines | Met a Derelict shopkeep closing up shop 1143 | -10/Mines | Discovered new exit (range 7) 1217 | -10/Mines | Learned 2 Materials zone layouts 1272 | -10/Mines | Discovered new exit (range 11) 1391 | -10/Mines | Excavation squad dispatched 1391 | -10/Mines | A large section of the Mines collapsed 1482 | -10/Mines | Assisted by bots powering up and referring to "LRC-V3" 1635 | -10/Mines | Discovered new exit (range 8) 1652 | -10/Mines | Entered Subcaves 1652 | -10/Subcaves | Accompanied by 2 allies 1867 | -10/Subcaves | A swath of the cavern ceiling suddenly collapsed 1923 | -10/Subcaves | Disturbed a concealed Subdweller 2014 | -10/Subcaves | Shifting Twisted Machinery released Sub. Machine Gun 2043 | -10/Subcaves | Shifting Twisted Machinery released Mak. Axe 2087 | -10/Subcaves | Core integrity fell below 50% 2210 | -10/Subcaves | Lost 4 parts (1p1n2w) 2231 | -10/Subcaves | Shifting Twisted Machinery released Sub. Laser 2236 | -10/Subcaves | Shifting Twisted Machinery released Shrapnel Trap 2322 | -10/Subcaves | Core integrity fell below 20% 2417 | -10/Subcaves | Shifting Twisted Machinery released Sub. Power Source 2419 | -10/Subcaves | Shifting Twisted Machinery released Mak. Flight Unit 2431 | -10/Subcaves | Discovered new exit (range 14) 2476 | -10/Subcaves | Entered Materials 2476 | -8/Materials | Evolved 4 slots: Propulsion x2, Utility x2 2477 | -8/Materials | Identified exit to Factory 2496 | -8/Materials | Lost 3 parts (1n1u1w) 3001 | -8/Materials | Destroyed 7 combat bots 3083 | -8/Materials | Lost 5 parts (3n1u1w) 3180 | -8/Materials | Core integrity fell below 50% 3220 | -8/Materials | Garrison activated, responded to threat 3246 | -8/Materials | Lost 8 parts (1p3n3u1w) 3401 | -8/Materials | Core integrity fell below 20% 3435 | -8/Materials | Discovered new exit (range 6) 3451 | -8/Materials | Destroyed by H-61 Shepherd with Heavy Assault Cannon Last Messages --------------- 03415_ Y-45 Defender suffers critical hit (Smash). 03415_ Destroyed Lgt. Treads. 03415_ Y-45 Defender system corrupted by crushing effect. 03416_ Y-45 Defender system terminally corrupted. 03416_ K-01 Serf collects debris. 03421_ ALERT: Suspicious intruders detected, dispatching Specialist reinforcements to area. 03422_ Acquired Hrd. Medium Armor Plating. 03423_ K-01 Serf collects debris. 03430_ G&CJ:2O&BIB/I33ZF1%GKUIN USFWNLAVNMVHG L 03435_ EXIT=FOUND 03435_ VSS Leg destroyed. 03435_ Hrd. Medium Armor Plating destroyed. 03435_ Knocked back. 03438_ U-05 Engineer builds a Wall. 03445_ Imp. Weapon Shielding destroyed. 03447_ H-61 Shepherd calls for reinforcements. 03447_ ALERT: Hostile activity reported, dispatching reinforcements to area. 03447_ VSS Leg destroyed. 03448_ System corrupted: Imp. Ion Engine rejected. 03451_ Penetrated by Slug. Map ----- +----------------------------------------------------+ | ??????????????????# " #???????????????????? | | ??????????????????+ +???????????????????? | | ??????????????????# % #???????????????????? | | ??????????????????# #???????????????????? | | ??????????????????# ##??????????????????? | | ??????????????????# % #??????????????????? | | ?????????##???????# % #??????????????????? | | ??????#######??#### ?????????????????? | | ??????# ####### ?????????????????? | | ??????# % %= ???????????????????? | | ??????# % #??????????????????????????? | | ??????# % % #####??????????????????????? | | ??????# ####### ==#??????????????????????? | | ######## ##?##??# ==#??????????????????????? | | #[ ##????## !!#??????????????????????? | | # %##????#T !!#??????????????????????? | | #*/ ##????## !!#??????????????????????? | | ! #*!!#??????# !!#??????????????????????? | | +[% #?????## #####??????????????????????? | | =#! !#?????# % ########??????????????????? | | #=###?????# = #??????????????????? | | #!#???????# = * #??????????????????? | | [ #=#???????# ! #??????????????????? | | ########%##??????# #### #??????????????????? | | ##%##??????########;# %#??????????????????? | | ## #????????# H @# #??????????????????? | | ##!#????????# # #??????????????????? | | ?##%##???????# < %%# ?????????????????? | | ##+##?##=##???????# # ???????????????? | | # #??#[##???????# # ??????????????? | | #??#*#????????######+######### ????????????? | | # #??#!#????????????????????????? #???????????? | | # =[#??# #?????????????????????????? #???????????? | | # !%####|#???????????????????????????#???????????? | | # *= ####????????????????????????????????????? | | # % !##???????????????????????????????????? | | # !#???????????????????????????????????? | | !#???????????????????????????????????? | | !#???????????????????????????????????? | | !#???????????????????????????????????? | | !##???????????????????????????????????? | | ####????????????????????????????????????? | | ##+###???????????????????????????????????????? | | # ## ????????????????????????????????????????? | | # ??????????????????????????????????????? | | # """ #????????????????????????????????????? | | # """ #????????????????????????????????????? | | # """ #????????????????????????????????????? | | # #????????????????????????????????????? | | #############????????????????????????????????????? | +----------------------------------------------------+ Best States ------------- Heat Dissipation 45 Energy Generation 15 Energy Capacity 265 Matter Stores 300 Matter Capacity 300 Sight Range 16 Terrain Scan Density 10 Armor Coverage 375 Resistance: KI 10 Resistance: TH 10 Resistance: EM 15 Weapon Shielding 66 Evasion (%) 55 Target Analysis 5 Item Schematics ----------------- None Robot Schematics ------------------ None Fabricated ------------ Nothing Alien Tech Used ----------------- None Achievements -------------- None Challenges ------------ None Game ------ Seed RefineryConstructReactor Manual? 0 Play Time 00:39:07 Cumulative 185.8 hours Start 2024.05.29 @ 16:37:21 End 2024.05.29 @ 18:38:04 Sessions 1 Manual Loads 0 Difficulty Rogue Special Mode None Game No. 149 Rogue 143 Adventurer 0 Explorer 6 Win Type - Total 4 Types 4/0/0/0/0/0/0/0/0 Lore% 44 Gallery% 59 Achievement% 48 Wizard Run 0 Options --------- Layout 0 ASCII 0 Keyboard 0 Movement Numpad Keybinds 0 Fullscreen 2 Font 24/Smallcaps Map View 113x50 Zoom Use 0% Tactical HUD 1 Map Filters NONE Filters NONE Steam 1 RUN: 62331c69-368f-4519-9b4d-372243a0bcf3